[Event "Live Chess"]
[Site "Chess.com"]
[Date "2024.06.02"]
[Round "-"]
[White "davigator"]
[Black "friarnator"]
[Result "0-1"]
[WhiteElo "2344"]
[BlackElo "2214"]
[TimeControl "300"]
[EndTime "5:45:25 PDT"]
[Termination "friarnator won by resignation"]

1. e4 {[%clk 0:04:57.9]} 1... c5 {[%clk 0:04:51]} 2. Nf3 {[%clk 0:04:56.7]} 2...
d6 {[%clk 0:04:45.7]} 3. d4 {[%clk 0:04:56.1]} 3... cxd4 {[%clk 0:04:45.6]} 4.
Nxd4 {[%clk 0:04:55]} 4... Nf6 {[%clk 0:04:45.3]} 5. Nc3 {[%clk 0:04:54.3]} 5...
a6 {[%clk 0:04:44.8]} 6. Bg5 {[%clk 0:04:53.2]} 6... e6 {[%clk 0:04:42.5]} 7. f4
{[%clk 0:04:49.4]} 7... h6 {[%clk 0:04:41.3]} 8. Bh4 {[%clk 0:04:46.8]} 8... Qb6
{[%clk 0:04:40.9]} 9. a3 {[%clk 0:04:44.9]} 9... Be7 {[%clk 0:04:39.1]} 10. Bf2
{[%clk 0:04:42.9]} 10... Qc7 {[%clk 0:04:36]} 11. Qf3 {[%clk 0:04:42.3]} 11...
b5 {[%clk 0:04:32.6]} 12. O-O-O {[%clk 0:04:40.7]} 12... Bb7 {[%clk 0:04:31.7]}
13. g4 {[%clk 0:04:39.3]} 13... Nbd7 {[%clk 0:04:24.9]} 14. h4 {[%clk
0:04:30.4]} 14... d5 {[%clk 0:04:18.4]} 15. Bd3 {[%clk 0:04:24.5]} 15... Nc5
{[%clk 0:04:14]} 16. e5 {[%clk 0:04:17]} 16... Nfe4 {[%clk 0:04:05]} 17. Be1
{[%clk 0:04:16]} 17... Nxd3+ {[%clk 0:03:48.6]} 18. cxd3 {[%clk 0:04:13.8]}
18... Nxc3 {[%clk 0:03:46.9]} 19. Bxc3 {[%clk 0:04:12.9]} 19... Bxa3 {[%clk
0:03:45.1]} 20. Kb1 {[%clk 0:04:09.1]} 20... Be7 {[%clk 0:03:42.4]} 21. g5
{[%clk 0:04:04.3]} 21... hxg5 {[%clk 0:03:34.1]} 22. hxg5 {[%clk 0:04:02.4]}
22... Rxh1 {[%clk 0:03:33.6]} 23. Rxh1 {[%clk 0:04:01.7]} 23... g6 {[%clk
0:03:33.5]} 24. Rh7 {[%clk 0:03:59.5]} 24... b4 {[%clk 0:03:28.2]} 25. Bd2
{[%clk 0:03:57.8]} 25... Rc8 {[%clk 0:03:23.1]} 26. Qd1 {[%clk 0:03:56.3]} 26...
Qc5 {[%clk 0:03:13.5]} 27. Be3 {[%clk 0:03:54.1]} 27... Qc7 {[%clk 0:02:53.6]}
28. Qa4+ {[%clk 0:03:51.2]} 28... Kf8 {[%clk 0:02:24.4]} 29. Qd1 {[%clk
0:03:49.1]} 29... a5 {[%clk 0:02:04]} 30. Qa4 {[%clk 0:03:38]} 30... Kg8 {[%clk
0:01:52.4]} 31. Rh1 {[%clk 0:03:34.6]} 31... Bc5 {[%clk 0:01:49.2]} 32. Rc1
{[%clk 0:03:32.8]} 32... Qb6 {[%clk 0:01:29.3]} 33. Qd7 {[%clk 0:03:30.1]} 33...
Rd8 {[%clk 0:01:23]} 34. Qb5 {[%clk 0:03:22.5]} 34... Qxb5 {[%clk 0:01:11.7]}
35. Nxb5 {[%clk 0:03:21.4]} 35... Bxe3 {[%clk 0:01:11.1]} 36. Rc7 {[%clk
0:03:20.7]} 36... Ba6 {[%clk 0:01:05.4]} 37. Nd6 {[%clk 0:03:19.3]} 37... b3
{[%clk 0:00:55.4]} 38. Nxf7 {[%clk 0:03:01.7]} 38... Rc8 {[%clk 0:00:41.3]} 39.
Nh6+ {[%clk 0:03:00.5]} 39... Kf8 {[%clk 0:00:32.5]} 0-1

[Event "Live Chess"]
[Site "Chess.com"]
[Date "2024.06.02"]
[Round "-"]
[White "WilliamofOrange16th"]
[Black "ukraineZelensky"]
[Result "1-0"]
[WhiteElo "2013"]
[BlackElo "1416"]
[TimeControl "300"]
[EndTime "5:45:37 PDT"]
[Termination "WilliamofOrange16th won by resignation"]

1. e4 {[%clk 0:04:57.7]} 1... e5 {[%clk 0:04:57.5]} 2. Nf3 {[%clk 0:04:56.2]}
2... d6 {[%clk 0:04:55.3]} 3. d4 {[%clk 0:04:50.8]} 3... exd4 {[%clk 0:04:53.5]}
4. Qxd4 {[%clk 0:04:47.5]} 4... Nf6 {[%clk 0:04:51.2]} 5. Nc3 {[%clk 0:04:42.3]}
5... c5 {[%clk 0:04:47.5]} 6. Bb5+ {[%clk 0:04:38]} 6... Nc6 {[%clk 0:04:42.2]}
7. Qd3 {[%clk 0:04:34.3]} 7... Bd7 {[%clk 0:04:39.1]} 8. O-O {[%clk 0:04:31]}
8... Be7 {[%clk 0:04:34.4]} 9. Nd5 {[%clk 0:04:25.6]} 9... Nxd5 {[%clk
0:04:28.1]} 10. exd5 {[%clk 0:04:25.5]} 10... Ne5 {[%clk 0:04:16.6]} 11. Nxe5
{[%clk 0:04:23.6]} 11... Bxb5 {[%clk 0:04:14.5]} 12. Qxb5+ {[%clk 0:04:21.4]}
12... Kf8 {[%clk 0:04:05.3]} 13. Nf3 {[%clk 0:04:17]} 13... a6 {[%clk
0:04:00.7]} 14. Qd3 {[%clk 0:04:15.5]} 14... Bf6 {[%clk 0:03:45.4]} 15. Rb1
{[%clk 0:04:14.3]} 15... g6 {[%clk 0:03:33.4]} 16. c4 {[%clk 0:04:12.7]} 16...
Kg7 {[%clk 0:03:30.7]} 17. b3 {[%clk 0:04:11.3]} 17... Re8 {[%clk 0:03:26.9]}
18. Bb2 {[%clk 0:04:10.1]} 18... Bxb2 {[%clk 0:03:24]} 19. Rxb2 {[%clk 0:04:10]}
19... Qf6 {[%clk 0:03:21.5]} 20. Re2 {[%clk 0:04:08.2]} 20... Rxe2 {[%clk
0:03:15.4]} 21. Qxe2 {[%clk 0:04:08.1]} 21... Kf8 {[%clk 0:03:10.5]} 22. Re1
{[%clk 0:04:06.7]} 22... Kg7 {[%clk 0:03:00.1]} 23. g3 {[%clk 0:04:05.4]} 23...
Rd8 {[%clk 0:02:56.4]} 24. h4 {[%clk 0:04:03.8]} 24... h6 {[%clk 0:02:55]} 25.
Nd2 {[%clk 0:04:00.8]} 25... Qd4 {[%clk 0:02:44.5]} 26. Qe3 {[%clk 0:03:52.6]}
26... Qxe3 {[%clk 0:02:34.5]} 27. Rxe3 {[%clk 0:03:51]} 27... Rd7 {[%clk
0:02:25.8]} 28. Re8 {[%clk 0:03:48.4]} 28... f5 {[%clk 0:02:23]} 29. f4 {[%clk
0:03:43.8]} 29... Kf7 {[%clk 0:02:16.5]} 30. Rb8 {[%clk 0:03:39.2]} 30... Kg7
{[%clk 0:02:02.4]} 31. Kf2 {[%clk 0:03:38.3]} 31... Kf6 {[%clk 0:01:58]} 32. a3
{[%clk 0:03:32.2]} 32... g5 {[%clk 0:01:56.4]} 33. hxg5+ {[%clk 0:03:30.7]}
33... hxg5 {[%clk 0:01:54.4]} 34. Nf3 {[%clk 0:03:15.1]} 34... gxf4 {[%clk
0:01:50.9]} 35. gxf4 {[%clk 0:03:15]} 35... a5 {[%clk 0:01:16.9]} 36. Rf8+
{[%clk 0:03:09.6]} 36... Kg6 {[%clk 0:01:11.7]} 37. Nh4+ {[%clk 0:03:07.9]}
37... Kh5 {[%clk 0:01:02.9]} 38. Nxf5 {[%clk 0:03:06.9]} 38... Kg4 {[%clk
0:01:01.1]} 39. Ne3+ {[%clk 0:03:03]} 39... Kh4 {[%clk 0:00:52]} 40. Kf3 {[%clk
0:03:01.6]} 40... b6 {[%clk 0:00:45.5]} 41. Rh8+ {[%clk 0:03:00.4]} 1-0

[Event "Live Chess"]
[Site "Chess.com"]
[Date "2024.06.02"]
[Round "-"]
[White "KeithArkell"]
[Black "alicechristina"]
[Result "1-0"]
[WhiteElo "2417"]
[BlackElo "1947"]
[TimeControl "300"]
[EndTime "5:45:55 PDT"]
[Termination "KeithArkell won by resignation"]

1. d4 {[%clk 0:04:57.8]} 1... d5 {[%clk 0:04:59.1]} 2. Nf3 {[%clk 0:04:57.1]}
2... e6 {[%clk 0:04:57]} 3. c4 {[%clk 0:04:56.4]} 3... c6 {[%clk 0:04:56.1]} 4.
cxd5 {[%clk 0:04:54.9]} 4... exd5 {[%clk 0:04:54.8]} 5. Nc3 {[%clk 0:04:54.2]}
5... Nf6 {[%clk 0:04:54]} 6. Bg5 {[%clk 0:04:53.2]} 6... Be7 {[%clk 0:04:53]} 7.
Qc2 {[%clk 0:04:52.3]} 7... h6 {[%clk 0:04:48.4]} 8. Bxf6 {[%clk 0:04:51.2]}
8... Bxf6 {[%clk 0:04:47.4]} 9. e3 {[%clk 0:04:50.8]} 9... O-O {[%clk
0:04:46.5]} 10. b4 {[%clk 0:04:50]} 10... Bg4 {[%clk 0:04:41.7]} 11. Be2 {[%clk
0:04:49.2]} 11... Nd7 {[%clk 0:04:38.9]} 12. O-O {[%clk 0:04:47.7]} 12... Nb6
{[%clk 0:04:36.1]} 13. b5 {[%clk 0:04:46.8]} 13... Rc8 {[%clk 0:04:29.5]} 14.
bxc6 {[%clk 0:04:44.5]} 14... Rxc6 {[%clk 0:04:28.3]} 15. Qb3 {[%clk 0:04:42.2]}
15... Nc4 {[%clk 0:04:25.8]} 16. Rfc1 {[%clk 0:04:32.3]} 16... Qc7 {[%clk
0:04:17.4]} 17. Nxd5 {[%clk 0:04:31.1]} 1-0

[Event "Live Chess"]
[Site "Chess.com"]
[Date "2024.06.02"]
[Round "-"]
[White "LL220284LL"]
[Black "Grace6363"]
[Result "1-0"]
[WhiteElo "2497"]
[BlackElo "1134"]
[TimeControl "300"]
[EndTime "5:45:58 PDT"]
[Termination "LL220284LL won by resignation"]

1. b4 {[%clk 0:04:58.7]} 1... c6 {[%clk 0:04:50.8]} 2. Bb2 {[%clk 0:04:58]} 2...
Nf6 {[%clk 0:04:49.4]} 3. g3 {[%clk 0:04:57.4]} 3... e6 {[%clk 0:04:48.5]} 4.
Bg2 {[%clk 0:04:56.8]} 4... d5 {[%clk 0:04:47.8]} 5. Nf3 {[%clk 0:04:56.1]} 5...
Be7 {[%clk 0:04:47.2]} 6. O-O {[%clk 0:04:55.4]} 6... Nbd7 {[%clk 0:04:46.7]} 7.
d3 {[%clk 0:04:54.9]} 7... Rb8 {[%clk 0:04:43.7]} 8. c4 {[%clk 0:04:54.3]} 8...
O-O {[%clk 0:04:41]} 9. a3 {[%clk 0:04:53.3]} 9... dxc4 {[%clk 0:04:37.5]} 10.
dxc4 {[%clk 0:04:50.8]} 10... b6 {[%clk 0:04:33.6]} 11. Ne5 {[%clk 0:04:47.2]}
11... Nxe5 {[%clk 0:04:27.9]} 12. Bxe5 {[%clk 0:04:47.1]} 12... Qxd1 {[%clk
0:04:21.6]} 13. Rxd1 {[%clk 0:04:45.3]} 13... Ba6 {[%clk 0:03:53.9]} 14. Bxb8
{[%clk 0:04:41.7]} 14... Rxb8 {[%clk 0:03:53.3]} 15. Nd2 {[%clk 0:04:38.9]}
15... c5 {[%clk 0:03:37.9]} 16. b5 {[%clk 0:04:37.1]} 16... Bb7 {[%clk
0:03:35.8]} 17. Bxb7 {[%clk 0:04:35.7]} 17... Rxb7 {[%clk 0:03:35.1]} 18. Nf3
{[%clk 0:04:35.6]} 18... Ne4 {[%clk 0:03:32.4]} 19. Rd3 {[%clk 0:04:30.3]} 19...
Bf6 {[%clk 0:03:25.6]} 20. Rad1 {[%clk 0:04:29.1]} 20... h6 {[%clk 0:03:15.2]}
21. Rd7 {[%clk 0:04:27.6]} 21... Rxd7 {[%clk 0:03:05]} 22. Rxd7 {[%clk
0:04:26.1]} 22... Nc3 {[%clk 0:02:25.3]} 23. e3 {[%clk 0:04:20.5]} 23... e5
{[%clk 0:01:52]} 24. Rxa7 {[%clk 0:04:17.4]} 24... e4 {[%clk 0:01:48.8]} 25. Nd2
{[%clk 0:04:16.1]} 25... Ne2+ {[%clk 0:01:28.6]} 26. Kf1 {[%clk 0:04:14.4]}
26... Nc1 {[%clk 0:01:28]} 27. Nxe4 {[%clk 0:04:11.6]} 27... Bb2 {[%clk
0:01:14.2]} 28. a4 {[%clk 0:04:08.1]} 28... Nb3 {[%clk 0:01:12.9]} 29. Nd6
{[%clk 0:04:05]} 29... Na5 {[%clk 0:01:07.4]} 30. f4 {[%clk 0:04:01.3]} 30... g5
{[%clk 0:01:01.5]} 31. Rxa5 {[%clk 0:03:59.3]} 31... bxa5 {[%clk 0:01:00.1]} 32.
b6 {[%clk 0:03:58.1]} 1-0

[Event "Live Chess"]
[Site "Chess.com"]
[Date "2024.06.02"]
[Round "-"]
[White "NAZRIZ1977"]
[Black "nitrofish07"]
[Result "1-0"]
[WhiteElo "2098"]
[BlackElo "2063"]
[TimeControl "300"]
[EndTime "5:46:04 PDT"]
[Termination "NAZRIZ1977 won by resignation"]

1. c4 {[%clk 0:04:54.4]} 1... c6 {[%clk 0:04:58.6]} 2. g3 {[%clk 0:04:53.7]}
2... d5 {[%clk 0:04:57.2]} 3. Bg2 {[%clk 0:04:53.2]} 3... Nf6 {[%clk 0:04:54.5]}
4. Nf3 {[%clk 0:04:52.4]} 4... Bg4 {[%clk 0:04:49.6]} 5. cxd5 {[%clk 0:04:51.2]}
5... cxd5 {[%clk 0:04:45.7]} 6. Qb3 {[%clk 0:04:50.5]} 6... Qd7 {[%clk
0:04:38.2]} 7. Ne5 {[%clk 0:04:48.1]} 7... Qc7 {[%clk 0:04:18.3]} 8. Nc3 {[%clk
0:04:45.4]} 8... e6 {[%clk 0:04:14.8]} 9. Nxg4 {[%clk 0:04:44.4]} 9... Nxg4
{[%clk 0:04:13.9]} 10. Qa4+ {[%clk 0:04:43.6]} 10... Nc6 {[%clk 0:04:11.4]} 11.
Qxg4 {[%clk 0:04:42.2]} 1-0

[Event "Live Chess"]
[Site "Chess.com"]
[Date "2024.06.02"]
[Round "-"]
[White "slava_ukr"]
[Black "upoe610"]
[Result "0-1"]
[WhiteElo "2348"]
[BlackElo "2130"]
[TimeControl "300"]
[EndTime "5:46:19 PDT"]
[Termination "upoe610 won by resignation"]

1. e4 {[%clk 0:04:59.6]} 1... e5 {[%clk 0:04:59]} 2. Nf3 {[%clk 0:04:58.4]} 2...
Nc6 {[%clk 0:04:51.7]} 3. Bb5 {[%clk 0:04:57.7]} 3... a6 {[%clk 0:04:50.3]} 4.
Bxc6 {[%clk 0:04:57.3]} 4... dxc6 {[%clk 0:04:49.7]} 5. O-O {[%clk 0:04:56.9]}
5... Bg4 {[%clk 0:04:47.7]} 6. h3 {[%clk 0:04:55.6]} 6... Bh5 {[%clk 0:04:47]}
7. g4 {[%clk 0:04:48.6]} 7... Bg6 {[%clk 0:04:45.9]} 8. Nxe5 {[%clk 0:04:47.9]}
8... Ne7 {[%clk 0:04:45.5]} 9. d3 {[%clk 0:04:40.5]} 9... h5 {[%clk 0:04:44.3]}
10. Kg2 {[%clk 0:04:34]} 10... f6 {[%clk 0:04:39.6]} 11. Nf3 {[%clk 0:04:27.5]}
11... Qd6 {[%clk 0:04:35.8]} 12. Qd2 {[%clk 0:04:21.6]} 12... O-O-O {[%clk
0:04:29.2]} 13. Qf4 {[%clk 0:04:20.5]} 13... Qe6 {[%clk 0:04:26.5]} 14. Nbd2
{[%clk 0:04:10.4]} 14... Bf7 {[%clk 0:04:25.1]} 15. Nc4 {[%clk 0:04:04.2]} 15...
g5 {[%clk 0:04:24]} 16. Qg3 {[%clk 0:04:00.8]} 16... Ng6 {[%clk 0:04:21.5]} 17.
Be3 {[%clk 0:03:54.7]} 17... b5 {[%clk 0:04:20.3]} 18. Nd4 {[%clk 0:03:44.4]}
18... Rxd4 {[%clk 0:04:13.4]} 19. Bxd4 {[%clk 0:03:43.3]} 19... bxc4 {[%clk
0:04:12.8]} 20. f3 {[%clk 0:03:26.8]} 20... Bd6 {[%clk 0:04:11]} 21. Qf2 {[%clk
0:03:20.4]} 21... hxg4 {[%clk 0:04:09.3]} 22. hxg4 {[%clk 0:03:13.7]} 22... Rh2+
{[%clk 0:04:06.5]} 23. Kg1 {[%clk 0:03:10.7]} 23... Rxf2 {[%clk 0:04:05.3]} 24.
Rxf2 {[%clk 0:03:10.1]} 24... Nf4 {[%clk 0:04:03.7]} 25. Rh2 {[%clk 0:03:01.4]}
25... cxd3 {[%clk 0:04:02.7]} 26. cxd3 {[%clk 0:03:00.1]} 26... Nxd3 {[%clk
0:04:01.9]} 27. Rh8+ {[%clk 0:02:58.7]} 27... Kb7 {[%clk 0:04:00.1]} 28. Rd1
{[%clk 0:02:57.2]} 28... Nf4 {[%clk 0:03:55.8]} 29. Re1 {[%clk 0:02:55.6]} 29...
Qc4 {[%clk 0:03:48.9]} 30. Bf2 {[%clk 0:02:49.5]} 30... Bc5 {[%clk 0:03:47.1]}
0-1

[Event "Live Chess"]
[Site "Chess.com"]
[Date "2024.06.02"]
[Round "-"]
[White "Rusty_Bridges"]
[Black "StoreySniper"]
[Result "0-1"]
[WhiteElo "1466"]
[BlackElo "2497"]
[TimeControl "300"]
[EndTime "5:46:22 PDT"]
[Termination "StoreySniper won on time"]

1. e4 {[%clk 0:04:56.3]} 1... g6 {[%clk 0:04:59.2]} 2. d4 {[%clk 0:04:55]} 2...
Bg7 {[%clk 0:04:57.8]} 3. Nf3 {[%clk 0:04:53.3]} 3... c5 {[%clk 0:04:56.1]} 4.
d5 {[%clk 0:04:50]} 4... d6 {[%clk 0:04:54.8]} 5. Nc3 {[%clk 0:04:44.7]} 5...
Bg4 {[%clk 0:04:53]} 6. Be2 {[%clk 0:04:43]} 6... Nf6 {[%clk 0:04:49.6]} 7. h3
{[%clk 0:04:38.2]} 7... Bxf3 {[%clk 0:04:48.5]} 8. Bxf3 {[%clk 0:04:36.7]} 8...
Qa5 {[%clk 0:04:45.6]} 9. Bd2 {[%clk 0:04:34.4]} 9... b5 {[%clk 0:04:43.6]} 10.
a3 {[%clk 0:04:21.7]} 10... a6 {[%clk 0:04:40.3]} 11. O-O {[%clk 0:04:19.1]}
11... O-O {[%clk 0:04:38.2]} 12. Ne2 {[%clk 0:04:09.2]} 12... Qc7 {[%clk
0:04:35.8]} 13. Bc3 {[%clk 0:04:06]} 13... Nbd7 {[%clk 0:04:33.3]} 14. Rc1
{[%clk 0:03:49.1]} 14... a5 {[%clk 0:04:29.9]} 15. Be1 {[%clk 0:03:43.2]} 15...
Ne5 {[%clk 0:04:24.5]} 16. Ng3 {[%clk 0:03:34]} 16... b4 {[%clk 0:04:22]} 17.
axb4 {[%clk 0:03:29.4]} 17... axb4 {[%clk 0:04:20.6]} 18. c3 {[%clk 0:03:28]}
18... bxc3 {[%clk 0:04:09.4]} 19. Bxc3 {[%clk 0:03:26.3]} 19... Nfd7 {[%clk
0:04:06]} 20. Be2 {[%clk 0:03:14.4]} 20... Nb6 {[%clk 0:04:00.9]} 21. Re1 {[%clk
0:03:05.7]} 21... Rfb8 {[%clk 0:03:56.2]} 22. Kh1 {[%clk 0:03:03.9]} 22... Nec4
{[%clk 0:03:50.4]} 23. Bxg7 {[%clk 0:02:57.4]} 23... Kxg7 {[%clk 0:03:41.7]} 24.
Bxc4 {[%clk 0:02:52.5]} 24... Nxc4 {[%clk 0:03:41]} 25. Rxc4 {[%clk 0:02:48.4]}
25... Rxb2 {[%clk 0:03:40.2]} 26. Rc2 {[%clk 0:02:40.4]} 26... Raa2 {[%clk
0:03:36.2]} 27. Rxb2 {[%clk 0:02:37.7]} 27... Rxb2 {[%clk 0:03:35.8]} 28. Re2
{[%clk 0:02:34.7]} 28... Rb4 {[%clk 0:03:26.8]} 29. Rc2 {[%clk 0:02:26.7]} 29...
Qb6 {[%clk 0:03:19.1]} 30. Kh2 {[%clk 0:02:24.1]} 30... Rb1 {[%clk 0:03:12]} 31.
Qd2 {[%clk 0:02:21.7]} 31... h5 {[%clk 0:03:03.5]} 32. Ne2 {[%clk 0:02:17]}
32... f6 {[%clk 0:02:56.1]} 33. g4 {[%clk 0:02:12.4]} 33... hxg4 {[%clk
0:02:52.7]} 34. hxg4 {[%clk 0:02:10.7]} 34... Qb8 {[%clk 0:02:50.4]} 35. Nf4
{[%clk 0:01:54.8]} 35... Qb3 {[%clk 0:02:32.1]} 36. Kg2 {[%clk 0:01:41]} 36...
Qa4 {[%clk 0:02:24.9]} 37. Ne6+ {[%clk 0:01:33.6]} 37... Kf7 {[%clk 0:02:22.2]}
38. Qe2 {[%clk 0:01:27.4]} 38... Qa1 {[%clk 0:02:13.9]} 39. Kf3 {[%clk
0:01:11.4]} 39... Rb3+ {[%clk 0:02:04.3]} 40. Kg2 {[%clk 0:01:02.9]} 40... Rb1
{[%clk 0:02:02.8]} 41. Kg3 {[%clk 0:00:59.3]} 41... Rg1+ {[%clk 0:02:00.8]} 42.
Kf3 {[%clk 0:00:58.5]} 42... Re1 {[%clk 0:01:40.6]} 43. Qd3 {[%clk 0:00:53.2]}
43... Qe5 {[%clk 0:01:19.5]} 44. Re2 {[%clk 0:00:44]} 44... Rh1 {[%clk
0:01:10.3]} 45. Ke3 {[%clk 0:00:34.7]} 45... Rh3+ {[%clk 0:00:53.9]} 46. f3
{[%clk 0:00:32.9]} 46... Qg3 {[%clk 0:00:51]} 47. Kd2 {[%clk 0:00:29.3]} 47...
Qe5 {[%clk 0:00:35.7]} 48. Qc3 {[%clk 0:00:23.1]} 48... Qxc3+ {[%clk 0:00:29.1]}
49. Kxc3 {[%clk 0:00:21.6]} 49... Rxf3+ {[%clk 0:00:28.4]} 50. Kd2 {[%clk
0:00:20]} 50... Rg3 {[%clk 0:00:26.6]} 51. Rh2 {[%clk 0:00:11.6]} 51... Kg8
{[%clk 0:00:24.4]} 52. Nf4 {[%clk 0:00:09.1]} 52... Rxg4 {[%clk 0:00:22.6]} 53.
Ne6 {[%clk 0:00:07.2]} 53... Rxe4 {[%clk 0:00:20.1]} 54. Rh3 {[%clk 0:00:06.1]}
54... Re5 {[%clk 0:00:19.1]} 55. Rd3 {[%clk 0:00:04.5]} 55... g5 {[%clk
0:00:17.4]} 56. Nc7 {[%clk 0:00:02.2]} 56... g4 {[%clk 0:00:15.9]} 57. Rg3
{[%clk 0:00:00.1]} 57... f5 {[%clk 0:00:15.2]} 0-1

[Event "Live Chess"]
[Site "Chess.com"]
[Date "2024.06.02"]
[Round "-"]
[White "TigerTank70"]
[Black "AlanBstard10"]
[Result "1-0"]
[WhiteElo "2213"]
[BlackElo "1228"]
[TimeControl "300"]
[EndTime "5:46:28 PDT"]
[Termination "TigerTank70 won by checkmate"]

1. e4 {[%clk 0:04:58.2]} 1... d5 {[%clk 0:04:58]} 2. exd5 {[%clk 0:04:57]} 2...
Nf6 {[%clk 0:04:57.7]} 3. d4 {[%clk 0:04:55.2]} 3... Qxd5 {[%clk 0:04:55.5]} 4.
c3 {[%clk 0:04:54.2]} 4... Qe4+ {[%clk 0:04:53.2]} 5. Be3 {[%clk 0:04:52.1]}
5... Nc6 {[%clk 0:04:52]} 6. Nf3 {[%clk 0:04:50]} 6... Bg4 {[%clk 0:04:49.4]} 7.
Nbd2 {[%clk 0:04:49.6]} 7... Bxf3 {[%clk 0:04:40.4]} 8. Nxf3 {[%clk 0:04:48.1]}
8... Ng4 {[%clk 0:04:33.1]} 9. Bd3 {[%clk 0:04:46.6]} 9... Nxe3 {[%clk
0:04:28.6]} 10. Bxe4 {[%clk 0:04:42.3]} 10... Nxd1 {[%clk 0:04:26.8]} 11. Rxd1
{[%clk 0:04:40.9]} 11... Rb8 {[%clk 0:04:18.4]} 12. Bxc6+ {[%clk 0:04:36]} 12...
bxc6 {[%clk 0:04:16.6]} 13. Rd2 {[%clk 0:04:35.1]} 13... e6 {[%clk 0:04:14]} 14.
Ke2 {[%clk 0:04:33]} 14... g6 {[%clk 0:04:12.2]} 15. Ne5 {[%clk 0:04:31.8]}
15... Rb7 {[%clk 0:04:05]} 16. Nxc6 {[%clk 0:04:28.5]} 16... Bh6 {[%clk
0:03:52.4]} 17. Rc2 {[%clk 0:04:23.5]} 17... O-O {[%clk 0:03:50]} 18. b3 {[%clk
0:04:14.7]} 18... f5 {[%clk 0:03:41.2]} 19. Re1 {[%clk 0:04:11.3]} 19... Rb6
{[%clk 0:03:35]} 20. Ne5 {[%clk 0:04:05.4]} 20... Rd8 {[%clk 0:03:25.4]} 21. g3
{[%clk 0:03:56.2]} 21... Bg7 {[%clk 0:03:24.4]} 22. f4 {[%clk 0:03:54.6]} 22...
Bxe5 {[%clk 0:03:23.3]} 23. fxe5 {[%clk 0:03:52.3]} 23... Kf7 {[%clk 0:03:16.8]}
24. Rd1 {[%clk 0:03:51.3]} 24... Rd7 {[%clk 0:03:07]} 25. c4 {[%clk 0:03:50.2]}
25... Rb8 {[%clk 0:03:05.9]} 26. Ke3 {[%clk 0:03:44.5]} 26... Rbd8 {[%clk
0:03:04.5]} 27. Rcd2 {[%clk 0:03:43]} 27... Kg7 {[%clk 0:03:00.1]} 28. Kf4
{[%clk 0:03:37.9]} 28... h6 {[%clk 0:02:57.5]} 29. h4 {[%clk 0:03:36.6]} 29...
Kf7 {[%clk 0:02:55]} 30. d5 {[%clk 0:03:34.3]} 30... exd5 {[%clk 0:02:53.4]} 31.
cxd5 {[%clk 0:03:34.2]} 31... Re7 {[%clk 0:02:38.4]} 32. Rc2 {[%clk 0:03:24.3]}
32... Kg7 {[%clk 0:02:33.7]} 33. Rc6 {[%clk 0:03:05.8]} 33... g5+ {[%clk
0:02:00.5]} 34. hxg5 {[%clk 0:03:02.5]} 34... hxg5+ {[%clk 0:01:59.7]} 35. Kxf5
{[%clk 0:03:00.7]} 35... Rf7+ {[%clk 0:01:57.4]} 36. Kxg5 {[%clk 0:02:56.9]}
36... Rdf8 {[%clk 0:01:53.8]} 37. Rg6+ {[%clk 0:02:54.2]} 37... Kh7 {[%clk
0:01:52.4]} 38. Rh1# {[%clk 0:02:53.8]} 1-0

[Event "Live Chess"]
[Site "Chess.com"]
[Date "2024.06.02"]
[Round "-"]
[White "booktrunk"]
[Black "Ksenia_2013"]
[Result "1-0"]
[WhiteElo "1499"]
[BlackElo "969"]
[TimeControl "300"]
[EndTime "5:46:34 PDT"]
[Termination "booktrunk won by checkmate"]

1. d3 {[%clk 0:04:56.8]} 1... d5 {[%clk 0:04:57.2]} 2. g3 {[%clk 0:04:53.2]}
2... Nf6 {[%clk 0:04:54.2]} 3. Bg2 {[%clk 0:04:48.6]} 3... g6 {[%clk 0:04:52.7]}
4. Nc3 {[%clk 0:04:35.2]} 4... d4 {[%clk 0:04:42.8]} 5. Ne4 {[%clk 0:04:32.5]}
5... Bg7 {[%clk 0:04:32.4]} 6. Bd2 {[%clk 0:04:25.5]} 6... O-O {[%clk
0:04:22.5]} 7. Nc5 {[%clk 0:04:23.2]} 7... Nc6 {[%clk 0:04:12.1]} 8. Qc1 {[%clk
0:04:20.4]} 8... Bf5 {[%clk 0:03:32.8]} 9. h4 {[%clk 0:04:16.2]} 9... Ng4 {[%clk
0:03:25.7]} 10. f3 {[%clk 0:04:00]} 10... Ne3 {[%clk 0:03:19.9]} 11. Bxe3 {[%clk
0:03:45.3]} 11... dxe3 {[%clk 0:03:16.6]} 12. c3 {[%clk 0:03:44]} 12... Qd5
{[%clk 0:03:00.9]} 13. Qxe3 {[%clk 0:03:32.7]} 13... Be5 {[%clk 0:02:40.9]} 14.
g4 {[%clk 0:03:03.1]} 14... Bg3+ {[%clk 0:02:34.2]} 15. Kd1 {[%clk 0:02:56.9]}
15... Bxg4 {[%clk 0:02:24.1]} 16. c4 {[%clk 0:02:50.8]} 16... Qf5 {[%clk
0:02:16.2]} 17. fxg4 {[%clk 0:02:45.2]} 17... Qxg4 {[%clk 0:02:10.2]} 18. Qf3
{[%clk 0:02:40.4]} 18... Qd4 {[%clk 0:01:51.2]} 19. Qxg3 {[%clk 0:02:26.8]}
19... Qxc5 {[%clk 0:01:49.2]} 20. Rb1 {[%clk 0:02:23.7]} 20... Nd4 {[%clk
0:01:47.1]} 21. Nf3 {[%clk 0:02:20.1]} 21... Nxf3 {[%clk 0:01:13.4]} 22. Qxf3
{[%clk 0:02:15.2]} 22... Qb4 {[%clk 0:01:09.4]} 23. b3 {[%clk 0:02:01.4]} 23...
Rad8 {[%clk 0:01:00.1]} 24. Kc2 {[%clk 0:01:56.1]} 24... Qa3 {[%clk 0:00:57.8]}
25. Rb2 {[%clk 0:01:52.6]} 25... Rd6 {[%clk 0:00:54.1]} 26. Rhb1 {[%clk
0:01:48.8]} 26... Rb6 {[%clk 0:00:52.5]} 27. h5 {[%clk 0:01:41.2]} 27... gxh5
{[%clk 0:00:49.9]} 28. Qxh5 {[%clk 0:01:37.6]} 28... Rxb3 {[%clk 0:00:40.2]} 29.
Rxb3 {[%clk 0:01:35]} 29... Qxa2+ {[%clk 0:00:38.6]} 30. R1b2 {[%clk 0:01:33.8]}
30... Qa6 {[%clk 0:00:24.4]} 31. Be4 {[%clk 0:01:30.2]} 31... Qg6 {[%clk
0:00:15.4]} 32. Bxg6 {[%clk 0:01:27.3]} 32... hxg6 {[%clk 0:00:13.9]} 33. Qa5
{[%clk 0:01:23]} 33... f6 {[%clk 0:00:08.8]} 34. Qxa7 {[%clk 0:01:20.2]} 34...
g5 {[%clk 0:00:07.5]} 35. Qxb7 {[%clk 0:01:19]} 35... g4 {[%clk 0:00:06.6]} 36.
Rb1 {[%clk 0:01:17.3]} 36... g3 {[%clk 0:00:05.2]} 37. Rg1 {[%clk 0:01:15.7]}
37... Kh8 {[%clk 0:00:02.9]} 38. Rxg3 {[%clk 0:01:13.4]} 38... Rg8 {[%clk
0:00:01.1]} 39. Qh1# {[%clk 0:01:11.9]} 1-0